bitfinex/quotes_SOLUSD_20250928
["timestamp","ask_amount","ask_price","bid_price","bid_amount"]
[1759048271008,1.50446413,202.25,202.2,19.82392162]
[1759048271213,1.50446413,202.24,202.2,15.57836933]
[1759048271520,1.50446413,202.24,202.21,0.7]
[1759048271696,1.50446413,202.24,202.22,0.7]
[1759048272723,2.35290232,202.24,202.22,0.7]
[1759048273794,2.35290232,202.24,202.2,20.52396236]
[1759048273999,2.35290232,202.24,202.21,0.7]
[1759048275624,2.35290232,202.25,202.22,0.7]
[1759048275814,26.0,202.26,202.2,7.29849535]
[1759048276018,26.0,202.26,202.21,17.93127165]
[1759048276217,26.0,202.26,202.22,0.7]
[1759048278602,26.0,202.26,202.23,0.7]
[1759048279010,2.35290232,202.27,202.21,22.17647075]
[1759048279199,40.37290232,202.28,202.24,0.7]
[1759048279614,41.08290232,202.28,202.24,0.7]
[1759048279921,2.35290232,202.27,202.24,0.7]
[1759048280115,3.06290232,202.27,202.22,20.52260122]
[1759048280320,2.35290232,202.27,202.23,0.7]
[1759048280509,3.00290232,202.27,202.23,15.57836933]
[1759048281426,3.00290232,202.27,202.23,14.87836933]
[1759048281631,2.35290232,202.25,202.21,0.7]
[1759048281816,2.35290232,202.25,202.22,0.7]
[1759048282015,2.35290232,202.25,202.22,15.57836933]
[1759048284323,2.35290232,202.26,202.23,0.7]
[1759048285148,2.35290232,202.26,202.23,15.57836933]
[1759048285434,2.35290232,202.26,202.23,0.7]
[1759048286610,2.35290232,202.24,202.19,5.64583752]
[1759048286934,2.35290232,202.24,202.21,14.87836933]
[1759048287108,2.35290232,202.25,202.22,0.7]
[1759048287932,2.35290232,202.26,202.23,0.7]
[1759048288229,2.35290232,202.26,202.24,0.7]
[1759048288612,2.35290232,202.26,202.23,14.87836933]
[1759048288812,2.35290232,202.26,202.23,15.57836933]
[1759048289707,2.35290232,202.26,202.23,0.7]
[1759048290323,2.35290232,202.25,202.22,14.87836933]
[1759048290812,2.35290232,202.25,202.22,15.57836933]
[1759048291325,2.35290232,202.24,202.22,15.57836933]
[1759048291539,2.35290232,202.23,202.19,139.64579756]
[1759048291839,2.35290232,202.23,202.2,0.7]
[1759048292021,2.35290232,202.23,202.21,14.87984525]
[1759048292421,2.35290232,202.23,202.21,15.57984525]
[1759048292655,2.35290232,202.22,202.21,14.87984525]
[1759048292935,2.35290232,202.22,202.16,175.09290232]
[1759048293238,2.35290232,202.22,202.19,14.87984525]
[1759048293415,2.35290232,202.22,202.19,15.57984525]
[1759048293735,2.35290232,202.23,202.2,0.7]
[1759048294735,2.35290232,202.25,202.21,0.7]
[1759048294910,2.35290232,202.26,202.21,15.57910725]
[1759048295112,2.35290232,202.26,202.22,0.7]
[1759048295830,53.98849633,202.27,202.23,0.7]
[1759048296036,53.98849633,202.27,202.23,15.57836933]
[1759048296733,53.98849633,202.27,202.23,14.87836933]
[1759048297039,15.94849633,202.27,202.23,0.7]
[1759048297247,2.35290232,202.26,202.23,0.7]
[1759048297548,2.35290232,202.26,202.22,14.87836933]
[1759048297730,2.35290232,202.26,202.22,15.57836933]
[1759048298134,15.94849633,202.24,202.22,14.87836933]
[1759048298329,2.35290232,202.23,202.18,5.64593772]
[1759048298533,2.35290232,202.24,202.19,15.57836933]
[1759048298743,2.35290232,202.25,202.2,0.7]
[1759048299119,2.35290232,202.25,202.21,0.7]
[1759048299739,2.35290232,202.24,202.21,0.7]
[1759048299919,2.35290232,202.24,202.21,15.57836933]
[1759048302027,2.35290232,202.23,202.19,0.7]
[1759048302324,2.35290232,202.23,202.2,15.57984525]
[1759048303043,28.35290232,202.23,202.2,15.57984525]
[1759048307952,28.35290232,202.24,202.21,0.7]
[1759048308154,26.0,202.23,202.22,0.7]
[1759048308756,3.32609842,202.25,202.22,0.7]
[1759048309047,39.59559401,202.27,202.22,0.7]
[1759048309250,3.32931663,202.26,202.23,13.59559401]
[1759048309447,26.0,202.25,202.24,0.7]
[1759048310453,26.0,202.26,202.24,0.7]
[1759048311255,3.3333957,202.25,202.24,0.7]
[1759048311556,29.3333957,202.25,202.23,13.59559401]
[1759048311753,26.71,202.25,202.21,7.29820664]
[1759048311957,26.0,202.25,202.23,13.59559401]
[1759048312644,26.0,202.25,202.21,7.96820664]
[1759048312849,26.0,202.25,202.21,7.29820664]
[1759048313046,26.0,202.25,202.22,0.67]
[1759048313238,3.33590344,202.24,202.22,0.67]
[1759048313438,26.0,202.25,202.23,0.67]
[1759048313640,3.33590452,202.24,202.23,0.67]
[1759048313854,3.33590452,202.24,202.22,14.87836933]
[1759048314157,26.0,202.25,202.22,14.87836933]
[1759048314460,3.33599672,202.24,202.22,14.87836933]
[1759048314662,26.0,202.25,202.22,14.87836933]
[1759048314861,3.33594707,202.24,202.22,14.87836933]
[1759048315070,26.0,202.25,202.22,14.87836933]
[1759048315357,3.33594634,202.24,202.23,0.67]
[1759048315935,3.33594634,202.24,202.23,15.54836933]
[1759048316759,3.33594634,202.24,202.23,0.67]
[1759048316947,3.33594634,202.24,202.23,15.54836933]
[1759048317152,26.0,202.28,202.23,17.90127165]
[1759048317360,29.33645728,202.27,202.24,3.02290232]
[1759048317545,3.33645728,202.26,202.25,0.67]
[1759048317938,3.33645728,202.26,202.25,15.54689371]
[1759048323855,3.33877207,202.26,202.25,15.54689371]
[1759048324037,3.33877207,202.26,202.25,22.8441718]
[1759048324238,3.33877207,202.3,202.25,22.8441718]
[1759048324438,3.33877207,202.29,202.27,2.35290232]
[1759048324639,13.59559401,202.32,202.28,0.67]
[1759048324857,3.33829863,202.31,202.28,15.54468081]
[1759048325051,3.33829863,202.3,202.28,15.54468081]
[1759048325244,14.30559401,202.32,202.28,15.54468081]
[1759048325440,13.59559401,202.3,202.28,14.87468081]
[1759048325770,13.59559401,202.28,202.22,0.67]
[1759048325934,13.59559401,202.26,202.23,14.87836933]
[1759048326266,0.71,202.25,202.21,134.7]
[1759048326567,0.71,202.25,202.22,13.59559401]
[1759048327277,13.59559401,202.26,202.23,0.67]
[1759048327857,13.59559401,202.26,202.22,13.59559401]
[1759048328052,0.71,202.25,202.22,13.59559401]
[1759048330959,13.59559401,202.24,202.22,13.59559401]
[1759048331261,19.95550444,202.23,202.18,0.69]
[1759048331436,16.61849633,202.23,202.19,14.88132146]
[1759048331636,16.61849633,202.23,202.19,15.57132146]
[1759048332059,16.61849633,202.23,202.16,2.35290232]
[1759048332060,13.59559401,202.2,202.16,0.69]
[1759048332251,15.94849633,202.2,202.16,0.69]
[1759048332566,1.50665507,202.2,202.16,15.57353633]
[1759048333566,39.59559401,202.18,202.16,14.88353633]
[1759048333762,1.50665507,202.17,202.14,0.2]
[1759048334262,13.59559401,202.16,202.14,0.2]
[1759048335370,13.59559401,202.18,202.15,0.69]
[1759048335578,13.59559401,202.18,202.16,0.69]
[1759048337172,13.59559401,202.18,202.14,0.2]
[1759048337344,15.77224908,202.18,202.14,0.2]
[1759048337692,15.10224908,202.18,202.14,0.2]
[1759048337852,0.67,202.17,202.14,0.2]
[1759048338060,13.59559401,202.16,202.14,0.2]
[1759048338373,41.10224908,202.15,202.14,0.2]
[1759048338781,78.30559401,202.15,202.14,0.2]
[1759048339077,79.81224908,202.15,202.14,0.2]
[1759048339592,41.10224908,202.15,202.14,0.2]
[1759048340055,79.14224908,202.15,202.14,0.2]
[1759048342875,79.80224908,202.15,202.14,0.2]
[1759048344656,88.06865582,202.15,202.14,0.2]
[1759048345207,50.02865582,202.15,202.14,0.2]
[1759048345468,88.08865582,202.15,202.14,0.2]
[1759048346344,84.76907074,202.15,202.14,0.2]
[1759048346548,88.0847165,202.15,202.14,0.2]
[1759048347572,50.0247165,202.15,202.14,0.2]
[1759048347760,88.0847165,202.15,202.14,0.2]
[1759048348471,50.0247165,202.15,202.14,0.2]
[1759048348652,88.0847165,202.15,202.14,0.2]
[1759048349059,84.76907074,202.15,202.14,0.2]
[1759048349259,88.08084762,202.15,202.14,0.2]
[1759048350089,84.76907074,202.15,202.14,0.2]
[1759048350384,83.26241567,202.15,202.14,0.2]
[1759048350680,84.76907074,202.15,202.14,0.2]
[1759048351076,46.70907074,202.15,202.14,0.2]
[1759048351254,84.76907074,202.15,202.14,0.2]
[1759048351679,78.31559401,202.15,202.14,0.2]
[1759048351881,15.10224908,202.15,202.14,0.2]
[1759048352074,15.10224908,202.15,202.14,0.87]
[1759048352384,53.16224908,202.15,202.14,0.87]
[1759048352718,53.16224908,202.15,202.14,0.2]
[1759048353178,15.10224908,202.15,202.14,0.2]
[1759048353361,53.16224908,202.15,202.14,0.2]
[1759048354783,77.65559401,202.15,202.14,0.87]
[1759048355096,39.59559401,202.15,202.14,0.87]
[1759048355264,77.65559401,202.15,202.14,0.87]
[1759048355686,51.65559401,202.15,202.14,0.87]
[1759048356075,13.59559401,202.15,202.14,0.87]
[1759048356268,38.06,202.16,202.14,0.87]
[1759048356576,13.59559401,202.16,202.15,0.67]
[1759048356781,51.65559401,202.16,202.15,0.67]
[1759048357186,26.0,202.17,202.15,0.67]
[1759048357390,13.59559401,202.19,202.15,0.67]
[1759048357765,51.65559401,202.19,202.15,0.67]
[1759048361690,51.65559401,202.19,202.16,0.67]
[1759048361865,38.06,202.18,202.16,0.67]
[1759048364583,13.59559401,202.19,202.16,0.67]
[1759048364761,38.06,202.18,202.14,0.2]
[1759048365166,38.06,202.18,202.15,0.67]
[1759048365686,38.06,202.18,202.16,0.67]
[1759048365889,13.59559401,202.19,202.16,0.67]
[1759048366079,13.59559401,202.17,202.16,0.67]
[1759048366275,13.59559401,202.17,202.14,0.87]
[1759048366587,13.59559401,202.17,202.15,0.67]
[1759048366786,13.59559401,202.17,202.16,0.67]
[1759048367486,51.65559401,202.18,202.15,0.67]
[1759048367780,51.65559401,202.18,202.14,0.2]
[1759048367781,38.06,202.18,202.16,0.67]
[1759048367971,51.65559401,202.18,202.17,0.67]
[1759048368677,13.59559401,202.18,202.14,6.65361926]
[1759048368880,13.59559401,202.17,202.15,0.67]
[1759048369088,52.31559401,202.17,202.14,0.2]
[1759048369380,53.82224908,202.17,202.14,0.2]
[1759048369590,51.65559401,202.17,202.14,0.87]
[1759048369782,38.06,202.16,202.14,0.87]
[1759048370160,38.06,202.16,202.14,0.2]
[1759048373391,26.0,202.15,202.14,0.85]
[1759048373571,38.06,202.16,202.14,0.85]
[1759048374667,26.0,202.15,202.14,0.85]
[1759048374868,38.06,202.16,202.14,0.85]
[1759048378278,38.06,202.16,202.15,0.65]
[1759048378490,26.0,202.15,202.14,0.2]
[1759048378693,26.0,202.15,202.14,0.85]
[1759048379495,38.06,202.16,202.14,0.85]
[1759048379670,38.06,202.16,202.14,0.2]
[1759048379873,38.06,202.16,202.15,0.65]
[1759048380284,26.0,202.16,202.14,0.2]
[1759048380483,26.0,202.15,202.14,0.2]
[1759048380667,15.77224908,202.2,202.14,0.2]
[1759048380875,26.0,202.17,202.14,1.70665507]
[1759048381083,64.06,202.17,202.15,0.65]
[1759048381280,64.06,202.17,202.16,0.65]
[1759048381493,64.06,202.17,202.14,0.85]
[1759048381676,64.06,202.17,202.14,0.2]
[1759048382176,64.06,202.17,202.14,0.85]
[1759048384596,64.06,202.17,202.14,0.2]
[1759048384800,5.50633848,202.16,202.14,0.2]
[1759048385588,2.17665507,202.16,202.14,0.2]
[1759048386199,52.30559401,202.15,202.14,0.2]
[1759048386703,51.63559401,202.15,202.14,0.2]
[1759048389027,52.30559401,202.15,202.14,0.2]
[1759048389321,53.81224908,202.15,202.14,0.2]
[1759048389530,57.14089326,202.15,202.14,0.2]
[1759048390404,56.47089326,202.15,202.14,0.2]
[1759048391495,54.96423819,202.15,202.14,0.2]
[1759048393217,41.36864418,202.15,202.14,0.2]
[1759048393427,4.13518714,202.21,202.14,7.35372145]
[1759048393603,13.59559401,202.19,202.16,1.50665507]
[1759048393922,3.32978558,202.18,202.17,0.7]
[1759048394326,3.32978558,202.18,202.16,1.50665507]
[1759048394327,3.32978558,202.18,202.15,0.7]
[1759048394507,51.63559401,202.19,202.15,0.7]
[1759048394508,3.32978558,202.17,202.15,0.7]
[1759048394710,51.63559401,202.19,202.15,0.7]
[1759048394711,3.32978558,202.18,202.15,0.7]
[1759048394923,3.32978558,202.17,202.14,5.1470329]
[1759048395113,38.04,202.18,202.16,0.7]
[1759048395321,3.33043952,202.17,202.16,0.7]
[1759048395932,3.33043952,202.17,202.15,4.94674198]
[1759048396225,38.04,202.18,202.15,4.94674198]
[1759048396420,3.33148275,202.17,202.15,4.94674198]
[1759048396625,38.04,202.18,202.16,0.7]
[1759048396826,3.33088989,202.17,202.16,0.7]
[1759048397003,13.59559401,202.19,202.16,0.7]
[1759048397210,3.33172768,202.18,202.16,0.7]
[1759048397419,51.63559401,202.19,202.16,0.7]
[1759048397614,3.33160844,202.18,202.16,0.7]
[1759048397820,51.63559401,202.19,202.15,4.94678249]
[1759048398134,3.33160736,202.18,202.16,0.7]
[1759048398309,51.63559401,202.19,202.16,0.7]
[1759048398511,3.33215435,202.18,202.16,0.7]
[1759048398722,38.04,202.19,202.15,4.94678249]
[1759048398921,2.35427477,202.24,202.18,2.35427477]
[1759048399111,54.96873962,202.23,202.18,2.35427477]
[1759048399310,3.33314561,202.22,202.19,0.7]
[1759048399525,3.33314561,202.21,202.19,0.7]
[1759048399837,3.33314561,202.2,202.19,0.7]
[1759048401211,3.33314561,202.2,202.18,12.36705416]
[1759048401410,0.69,202.2,202.16,2.35427477]
[1759048401824,0.69,202.2,202.17,12.36705416]
[1759048402018,38.73,202.2,202.16,0.7]
[1759048402226,3.33209172,202.19,202.16,0.7]
[1759048402418,38.73,202.2,202.16,13.06705416]
[1759048404634,3.33089196,202.19,202.16,13.06705416]
[1759048404934,38.73,202.2,202.16,13.06705416]
[1759048405432,38.04,202.2,202.16,19.66785013]
[1759048405636,14.28559401,202.23,202.17,3.05427477]
[1759048405820,13.59559401,202.21,202.17,3.05427477]
[1759048406017,3.33012849,202.2,202.17,17.9378111]
[1759048406227,13.59559401,202.21,202.17,17.9378111]
[1759048406426,3.33002839,202.2,202.17,17.9378111]
[1759048406627,13.59559401,202.21,202.18,0.7]
[1759048406831,13.59559401,202.21,202.19,0.7]
[1759048406832,3.32986356,202.2,202.19,0.7]
[1759048407040,40.28559401,202.25,202.19,2.35427477]
[1759048407339,54.96551174,202.24,202.19,2.35427477]
[1759048407541,3.32991773,202.23,202.2,3.05427477]
[1759048407721,3.32991773,202.22,202.21,3.05427477]
[1759048408041,3.32991773,202.22,202.21,2.35427477]
[1759048408420,3.32991773,202.24,202.21,3.05427477]
[1759048408738,13.59559401,202.26,202.22,0.7]
[1759048408739,51.63559401,202.26,202.22,0.7]
[1759048408940,3.32938293,202.25,202.23,0.7]
[1759048409141,3.32938293,202.24,202.23,0.7]
[1759048409318,3.32938293,202.25,202.23,0.7]
[1759048409521,4.01828639,202.24,202.22,13.59559401]
[1759048409722,0.69,202.24,202.2,2.35427477]
[1759048409923,0.69,202.24,202.21,13.59559401]
[1759048410620,4.01724609,202.24,202.21,13.59559401]
[1759048411337,3.32724609,202.24,202.21,14.29559401]
[1759048412028,3.32724609,202.24,202.22,0.7]
[1759048412226,3.32724609,202.24,202.22,14.99559401]
[1759048412428,3.32724609,202.25,202.22,14.99559401]
[1759048412836,3.32724609,202.25,202.22,14.29559401]
[1759048413038,3.32724609,202.25,202.23,0.7]
[1759048413435,3.32724609,202.25,202.22,14.29559401]
[1759048413633,41.36724609,202.26,202.24,0.7]
[1759048413848,3.32724609,202.25,202.24,0.7]
[1759048414337,51.63559401,202.27,202.24,0.7]
[1759048414538,3.3245319,202.26,202.24,0.7]
[1759048417835,3.3245319,202.26,202.25,0.7]
[1759048418037,26.0,202.28,202.25,0.7]
[1759048418038,3.3245319,202.27,202.25,0.7]
[1759048418544,3.3245319,202.27,202.23,0.7]
[1759048418727,3.3245319,202.27,202.24,0.7]
[1759048420520,16.92012591,202.27,202.24,0.7]
[1759048420825,13.59559401,202.24,202.21,14.87836933]
[1759048421025,16.63986878,202.24,202.21,14.87836933]
[1759048421244,16.63986878,202.24,202.19,0.7]
[1759048421444,57.98162347,202.24,202.19,0.7]
[1759048421635,54.65986878,202.24,202.2,15.57836933]
[1759048422344,0.69,202.23,202.2,14.87836933]
[1759048422537,0.69,202.22,202.17,3.05427477]
[1759048422743,2.35427477,202.23,202.18,0.7]
[1759048422943,54.65986878,202.24,202.19,14.87836933]
[1759048423149,54.65986878,202.24,202.19,15.57836933]
[1759048423547,54.65986878,202.24,202.19,0.7]
[1759048424046,54.65986878,202.24,202.2,14.88132146]
[1759048425453,54.65986878,202.24,202.19,0.7]
[1759048425843,54.65986878,202.24,202.19,15.58132146]
[1759048426859,2.35427477,202.23,202.19,15.58132146]
[1759048427435,3.04427477,202.23,202.19,14.88132146]
[1759048427961,3.04427477,202.23,202.19,15.58132146]
[1759048428645,13.59559401,202.22,202.19,14.88132146]
[1759048428837,13.59559401,202.22,202.16,7.30085061]
[1759048429041,13.59559401,202.22,202.2,0.7]
[1759048429440,13.59559401,202.22,202.18,0.7]
[1759048429638,13.59559401,202.22,202.19,0.7]
[1759048429956,51.61559401,202.22,202.19,0.7]
[1759048434575,51.61559401,202.22,202.18,14.88132146]
[1759048435041,51.61559401,202.22,202.18,15.57132146]
[1759048435357,51.61559401,202.22,202.19,0.69]
[1759048438156,13.59559401,202.22,202.19,0.69]
[1759048438336,51.61559401,202.22,202.19,0.69]
[1759048441140,52.30559401,202.22,202.19,0.69]
[1759048442253,52.30559401,202.22,202.18,14.88132146]
[1759048442436,52.30559401,202.22,202.18,15.57132146]
[1759048443449,13.59559401,202.2,202.18,14.88132146]
[1759048443651,52.30559401,202.19,202.18,14.88132146]
[1759048443856,52.30559401,202.19,202.13,137.05427477]
[1759048444043,0.69,202.18,202.16,14.88427477]
[1759048444556,13.59559401,202.16,202.14,0.2]
[1759048445643,14.28559401,202.16,202.14,0.2]
[1759048447956,0.69,202.15,202.14,0.2]
[1759048448562,14.28559401,202.15,202.14,0.2]
[1759048448862,54.65986878,202.15,202.14,0.2]
[1759048454447,53.96986878,202.15,202.14,0.2]
[1759048454647,53.12299805,202.15,202.14,0.2]
[1759048455962,53.80299805,202.15,202.14,0.2]
[1759048456352,62.07365303,202.15,202.14,0.2]
[1759048457348,39.59559401,202.11,202.07,0.2]
[1759048457543,1.50740404,202.08,202.07,0.2]
[1759048457868,42.85123736,202.08,202.07,0.2]
[1759048458071,43.53123736,202.08,202.07,0.2]
[1759048458368,63.15644753,202.08,202.07,0.2]
[1759048458669,39.59559401,202.05,202.04,0.2]
[1759048458868,41.10299805,202.05,202.04,0.2]
[1759048459050,79.80299805,202.05,202.04,0.2]
[1759048459251,83.11384344,202.05,202.04,0.2]
[1759048459747,82.43384344,202.05,202.04,0.2]
[1759048459951,79.80299805,202.05,202.04,0.2]
[1759048460473,88.05959205,202.05,202.04,0.2]
[1759048461262,13.59559401,202.04,202.03,5.2]
[1759048461476,19.08032207,202.04,202.03,5.2]
[1759048461866,53.81299805,202.04,202.03,5.2]
[1759048462058,19.08032207,202.04,202.03,5.2]
[1759048462274,53.81299805,202.04,202.03,5.2]
[1759048462866,62.06198019,202.04,202.03,5.2]
[1759048463172,17.56506121,202.04,202.03,5.2]
[1759048463353,58.76251299,202.04,202.03,5.2]
[1759048463555,62.06198019,202.04,202.03,5.2]
[1759048463961,26.0,202.04,202.03,5.86]
[1759048464172,79.14299805,202.04,202.03,5.2]
[1759048464772,15.10299805,202.04,202.03,5.86]
[1759048464973,53.14299805,202.04,202.03,5.86]
[1759048465691,51.63559401,202.04,202.03,5.86]
[1759048465882,53.14299805,202.04,202.03,5.2]
[1759048467479,39.59559401,202.04,202.03,5.86]
[1759048467675,38.06,202.06,202.03,5.86]
[1759048467873,13.59559401,202.08,202.04,0.66]
[1759048468074,1.50740404,202.09,202.04,0.66]
[1759048468075,13.59559401,202.06,202.04,0.66]
[1759048470074,13.59559401,202.07,202.04,0.66]
[1759048470388,38.06,202.06,202.04,0.66]
[1759048473285,51.65559401,202.06,202.05,0.66]
[1759048473657,13.59559401,202.05,202.03,5.86]
[1759048473883,51.65559401,202.04,202.03,5.86]
[1759048474960,13.59559401,202.04,202.03,5.86]
[1759048475373,38.06,202.05,202.03,5.86]
[1759048475983,51.65559401,202.05,202.04,0.66]
[1759048476485,13.59559401,202.05,202.04,0.66]
[1759048476694,51.65559401,202.05,202.04,0.66]
[1759048477387,38.06,202.05,202.04,0.66]
[1759048477565,13.59559401,202.07,202.04,0.66]
[1759048477757,38.04,202.06,202.04,0.66]
[1759048478157,51.63559401,202.06,202.05,0.66]
[1759048478388,13.59559401,202.06,202.05,0.66]
[1759048478567,51.63559401,202.06,202.05,0.66]
[1759048478878,51.63559401,202.06,202.03,5.86]
[1759048479089,51.63559401,202.06,202.04,0.66]
[1759048480189,40.21740404,202.06,202.03,5.2]
[1759048480371,1.50740404,202.05,202.03,5.2]
[1759048480690,38.04,202.04,202.03,5.2]
[1759048481275,38.04,202.04,202.03,5.86]
[1759048481693,38.04,202.05,202.03,12.31716397]
[1759048481991,38.04,202.05,202.04,2.16740404]
[1759048482283,38.06,202.06,202.04,2.16740404]
[1759048482457,38.06,202.06,202.05,0.66]
[1759048482658,13.59559401,202.08,202.05,0.66]
[1759048482861,38.06,202.07,202.05,0.66]
[1759048484284,38.06,202.07,202.04,1.50740404]
[1759048484502,0.67,202.11,202.03,10.14975993]
[1759048484503,2.17740404,202.14,202.06,7.11642908]
[1759048484782,51.67559401,202.13,202.08,1.50740404]
[1759048484961,13.59559401,202.13,202.09,2.16740404]
[1759048485160,38.08,202.12,202.09,0.66]
[1759048485778,38.08,202.12,202.07,1.50740404]
[1759048485992,38.08,202.12,202.08,0.66]
[1759048486888,38.08,202.12,202.07,1.50740404]
[1759048487076,38.75,202.12,202.08,0.66]
[1759048487278,38.08,202.12,202.08,0.66]
[1759048487586,38.06,202.11,202.08,0.66]
[1759048489788,38.06,202.1,202.08,0.66]
[1759048490587,38.06,202.1,202.08,2.16740404]
[1759048491991,38.06,202.1,202.07,1.50740404]
[1759048492175,38.06,202.1,202.07,2.18740404]
[1759048493684,38.06,202.1,202.07,1.50740404]
[1759048493887,38.74,202.1,202.07,1.50740404]
[1759048494269,38.06,202.1,202.07,2.18740404]
[1759048494466,38.04,202.1,202.08,2.18740404]
[1759048494677,38.04,202.11,202.09,2.18740404]
[1759048494887,38.04,202.11,202.1,2.18740404]
[1759048495589,38.04,202.11,202.09,1.50740404]
[1759048495778,38.04,202.11,202.09,2.18740404]
[1759048496694,38.72,202.11,202.07,2.18740404]
[1759048496874,38.04,202.11,202.08,0.68]
[1759048499602,38.04,202.11,202.08,2.18740404]
[1759048500370,38.04,202.11,202.08,1.50740404]
[1759048500570,38.72,202.11,202.07,1.50740404]
[1759048500899,38.72,202.11,202.07,2.18740404]
[1759048502391,0.68,202.11,202.07,2.18740404]
[1759048502599,38.04,202.1,202.07,2.18740404]
[1759048503000,26.68,202.09,202.03,5.88]
[1759048503203,13.59559401,202.08,202.03,5.2]
[1759048503498,0.68,202.07,202.03,5.2]
[1759048503800,38.72,202.06,202.03,5.2]
[1759048505500,0.68,202.06,202.03,5.2]
[1759048505684,38.04,202.05,202.03,5.2]
[1759048506995,13.59559401,202.08,202.04,0.68]
[1759048507194,13.59559401,202.06,202.04,0.68]
[1759048507683,13.59559401,202.1,202.05,2.18740404]
[1759048507881,13.59559401,202.12,202.08,1.50740404]
[1759048508088,38.06,202.11,202.08,1.50740404]
[1759048508292,14.27559401,202.12,202.08,1.50740404]
[1759048508495,38.06,202.1,202.08,1.50740404]
[1759048509398,38.06,202.1,202.08,0.68]
[1759048510914,38.06,202.1,202.07,1.50740404]
[1759048511088,38.06,202.1,202.07,2.18740404]
[1759048511702,13.59559401,202.12,202.06,1.50740404]
[1759048511910,38.71,202.1,202.06,1.50740404]
[1759048512214,38.71,202.1,202.06,2.18740404]
[1759048512910,38.04,202.1,202.06,1.50740404]
[1759048513090,38.04,202.1,202.07,0.68]
[1759048515112,14.26559401,202.09,202.03,10.14926753]
[1759048515287,2.17740404,202.08,202.03,5.2]
[1759048515489,38.04,202.07,202.04,2.18740404]
[1759048515793,38.04,202.08,202.05,2.18740404]
[1759048516193,38.04,202.08,202.05,1.50740404]
[1759048516406,38.04,202.08,202.06,0.68]
[1759048516600,38.04,202.08,202.05,2.35634808]
[1759048516807,38.04,202.08,202.05,0.68]
[1759048517009,13.59559401,202.09,202.05,0.68]
[1759048517213,38.04,202.08,202.04,2.35634808]
[1759048517512,0.67,202.07,202.03,7.55634808]
[1759048519010,0.67,202.07,202.03,8.23634808]
[1759048519213,38.04,202.08,202.03,7.55634808]
[1759048519509,38.04,202.08,202.04,3.03634808]
[1759048519694,38.04,202.08,202.05,0.68]
[1759048520092,38.04,202.08,202.05,3.03634808]
[1759048520716,3.32899324,202.07,202.05,3.03634808]
[1759048520917,38.04,202.08,202.05,3.03634808]
[1759048521094,3.32899494,202.07,202.05,3.03634808]
[1759048521294,38.04,202.08,202.05,3.03634808]
[1759048521513,3.32936169,202.07,202.06,0.71]
[1759048521722,67.36956886,202.1,202.07,0.71]
[1759048521909,3.32956886,202.09,202.07,3.06634808]
[1759048522103,64.04,202.1,202.07,3.06634808]
[1759048522311,3.32983565,202.09,202.07,3.06634808]
[1759048522528,64.04,202.1,202.07,3.06634808]
[1759048522726,3.32982738,202.09,202.08,2.35634808]
[1759048522895,3.32982738,202.09,202.05,0.71]
[1759048523102,38.04,202.1,202.06,3.06634808]
[1759048523297,3.33009314,202.09,202.06,0.71]
[1759048523523,38.04,202.1,202.07,3.06634808]
[1759048523818,3.33021004,202.09,202.07,3.06634808]
[1759048524025,3.33011958,202.08,202.04,10.14975198]
[1759048524232,38.04,202.1,202.05,3.06634808]
[1759048524414,4.03985158,202.09,202.04,12.50610006]
[1759048524612,4.03985158,202.08,202.04,12.50610006]
[1759048524811,38.75,202.1,202.04,12.50610006]
[1759048525015,3.32949179,202.09,202.04,13.21610006]
[1759048525228,3.32949179,202.08,202.04,13.21610006]
[1759048525423,0.71,202.09,202.04,13.21610006]